Cogmind - Beta 13 @@@ ROGUE MODE // 2024.04.19 @ 09:00:01 Player: m1m1c Result: Destroyed by G-34 Mercenary with Small Laser Performance ------------- Evolutions (1) 500 Regions Visited (5) 1000 Robots Destroyed (96) 480 Value Destroyed (2660) 2660 Prototype IDs (5) 100 Alien Tech Used (0) 0 Bonus (235) 235 TOTAL SCORE: 4975 Bonus ------- High Alert Combat Kills 61 Follower Combat Kills 35 Entered Garrisons 200 Friendly Fire -61 Cogmind --------- Core Integrity 0/400 Matter 17/300 Energy 250/250 System Corruption 6% Temperature Hot (267) Movement Treading (480) Ox4 Location -9/Garrison Parts ------- > --- POWER (1) -------- Ion Engine > --- PROPULSION (3) --- Light Treads Wheel > --- UTILITY (3) ------ Huge Storage Unit Core Shielding > --- WEAPON (2) ------- Small Laser > --- INVENTORY (25) --- Cooled VTOL Module Sensor Array Targeting Computer Core Shielding Core Shielding Core Shielding Core Shielding Light Armor Plating Light Armor Plating Hardened Light Armor Plating Insulated Plating Hacking Suite Hacking Suite Relay Coupler [Swarmer] (37) Relay Coupler [Hunter] (14) Relay Coupler [Heavy] (12) Improved Assault Rifle Grenade Launcher Grenade Launcher Grenade Launcher Datajack Plasma Cutter Peak State ------------ > --- POWER ------------ Light Nuclear Core > --- PROPULSION ------- Light Treads Light Treads Advanced Treads > --- UTILITY ---------- Huge Storage Unit Signal Interpreter Improved Light Armor Plating > --- WEAPON ----------- Spread Laser Heavy Assault Rifle > --- INVENTORY -------- Light Treads Light Treads Light Treads Targeting Computer Core Shielding Core Shielding Core Shielding Core Shielding Core Shielding Core Shielding Light Armor Plating Light Armor Plating Insulated Plating Hacking Suite Grenade Launcher Grenade Launcher Grenade Launcher Grenade Launcher Mini Grenade Launcher Mini Grenade Launcher Datajack Mining Laser Plasma Cutter [Rating: 20] Favorites ----------- Power Light Ion Engine Engine Light Ion Engine Power Core Light Nuclear Core Propulsion Light Treads Treads Light Treads Leg Aluminum Leg Wheel Compact Wheel Flight Unit Cooled VTOL Module Utility Signal Interpreter Device Improved Heat Sink Storage Huge Storage Unit Processor Signal Interpreter Protection Core Shielding Weapon Assault Rifle Energy Gun Small Laser Ballistic Gun Assault Rifle Ballistic Cannon Light Cannon Launcher Mini Grenade Launcher Special Weapon Plasma Cutter Build | -11 -10 -10 -9 -9 -9 ------- Run | Yrd Mat Min Mat Sto Gar Slots Evolved 2 | . . . 2 . . Power . | . . . . . . Propulsion 1 | . . . 1 . . Utility 1 | . . . 1 . . Weapon . | . . . . . . Parts Attached 67 | 2 12 7 28 7 11 Power 8 | . 1 . 5 . 2 Engine 6 | . 1 . 3 . 2 Core 2 | . . . 2 . . Reactor . | . . . . . . Propulsion 27 | 2 . 4 13 5 3 Treads 19 | 2 . 3 8 4 2 Leg 1 | . . . 1 . . Wheel 5 | . . 1 3 . 1 Hover . | . . . . . . Flight 2 | . . . 1 1 . Utility 12 | . 3 3 5 . 1 Device 2 | . 1 . 1 . . Storage 4 | . 1 3 . . . Processor 1 | . 1 . . . . Hackware . | . . . . . . Protection 5 | . . . 4 . 1 Artifact . | . . . . . . Weapon 20 | . 8 . 5 2 5 Energy Gun 4 | . 2 . 1 . 1 Energy Cannon . | . . . . . . Ballistic Gun 4 | . 1 . 2 . 1 Ballistic Cannon 6 | . 2 . 1 2 1 Launcher 4 | . 1 . 1 . 2 Special Weapon 2 | . 2 . . . . Impact Weapon . | . . . . . . Slashing Weapon . | . . . . . . Piercing Weapon . | . . . . . . Special Melee Weapon . | . . . . . . Unidentified Prototypes 5 | . 1 . 3 1 . Parts Lost 30 | . 1 . 16 2 11 Power 6 | . 1 . 3 . 2 Propulsion 12 | . . . 7 1 4 Utility 4 | . . . 2 . 2 Weapon 8 | . . . 4 1 3 Highest Loss Streak 4 | . 1 . 3 1 4 To Critical Strikes 1 | . . . 1 . . Average Slot Usage (%) 93 | . 88 100 91 99 97 Engine 10 | . 11 14 4 11 10 Core 1 | . . . 4 . . Treads 26 | . 28 21 26 32 29 Wheel 2 | . . 6 1 . 3 Storage 12 | . 14 14 11 11 11 Processor 8 | . 2 14 11 11 11 Protection 5 | . . . 10 11 10 Energy Gun 4 | . 9 . 4 . . Ballistic Gun 11 | . 14 14 8 9 8 Ballistic Cannon 7 | . 4 14 5 12 9 Naked Turns . | . . . . . . Heaviest Build 97 | 11 49 88 97 96 96 Greatest Support 63 | 40 40 42 63 63 60 Greatest Overweight (x) 31 | . 1 5 31 31 9 Average Overweight (x) 2 | . . 3 1 1 3 Largest Inventory Capacity 25 | 8 20 25 25 25 25 Average Capacity 22 | 8 19 22 25 25 25 Most Carried 25 | 6 20 24 25 25 24 Average Carried 18 | 5 11 22 23 24 22 Final Capacity 25 | 8 20 25 25 25 25 Final Carried 25 | 4 20 23 25 24 22 Class Distribution -------------------- 87% | Mutant 12% | Scavenger-Mutant Dominant Class ---------------- Mutant | -10/Materials Mutant | -10/Mines Mutant | -9/Materials Mutant | -9/Storage Mutant | -9/Garrison Resources | -11 -10 -10 -9 -9 -9 ----------- Run | Yrd Mat Min Mat Sto Gar Matter Collected 2050 | 200 305 207 784 253 301 Remotely . | . . . . . . Salvage Created 2903 | . 573 70 1374 513 373 Parts 180 | . 44 6 80 28 22 Haulers Intercepted 4 | . 1 . 2 1 . Recyclers Shooed 3 | . . . 1 2 . Parts Field Recycled . | . . . . . . Retrieved Matter . | . . . . . . Parts Self-Destructed . | . . . . . . Prevented . | . . . . . . Kills | -11 -10 -10 -9 -9 -9 ------- Run | Yrd Mat Min Mat Sto Gar Combat Hostiles Destroyed 72 | . 12 4 31 8 17 Guns 30 | . 9 1 13 2 5 Cannons 32 | . 2 3 16 5 6 AOE 10 | . 1 . 2 1 6 Classes Destroyed 13 | . 5 1 6 1 . Worker 6 | . 3 . 1 2 . Builder 2 | . . . 2 . . Hauler 4 | . 1 . 2 1 . Recycler 5 | . . . 2 3 . Mechanic 1 | . . . . 1 . Operator 3 | . 1 . 2 . . Watcher 2 | . 1 . 1 . . Swarmer 13 | . . 3 3 . 7 Grunt 48 | . 12 1 17 8 10 Brawler 2 | . . . 2 . . Duelist 1 | . . . 1 . . Sentry 8 | . . . 8 . . Zionite 1 | . . . 1 . . Best Kill Streak 10 | . 3 3 6 7 10 Combat Bots Only 10 | . 2 3 6 3 10 Max Kills in Single Turn 5 | . 2 1 3 3 5 Gunslinging . | . . . . . . Exploded 5 | . 1 . 2 1 5 Melee . | . . . . . . Uniques/NPCs Destroyed . | . . . . . . Combat | -11 -10 -10 -9 -9 -9 -------- Run | Yrd Mat Min Mat Sto Gar Hostile Shots Fired 453 | . 56 7 212 53 125 Missed 119 | . 8 1 48 20 42 Damage Taken 4315 | . 582 55 2288 478 912 Core 508 | . 95 8 254 39 112 Absorbed by Shields 12 | . . . . . 12 Redirected to Shielding 74 | . . . 46 9 19 Core Remaining (%) 79 | 100 . 58 . . . Volleys Fired 294 | . 79 8 119 38 50 Largest 2 | . 2 2 2 2 2 Hottest 100 | . 100 55 88 62 78 Shots Fired 500 | . 148 16 186 74 76 Gun 305 | . 130 8 96 36 35 Cannon 174 | . 8 8 83 38 37 Launcher 13 | . 2 . 7 . 4 Special 8 | . 8 . . . . Kinetic 386 | . 79 16 153 74 64 Thermal 101 | . 67 . 26 . 8 Explosive 13 | . 2 . 7 . 4 Electromagnetic . | . . . . . . Robot Hit Streak 14 | . 10 5 14 8 11 Robot Miss Streak 6 | . 5 2 4 4 6 Penetration Max . | . . . . . . Secondary Targets 1 | . . . 1 . . Max Gunslinging Chain 1 | . . . 1 . . Shots Hit Robots 286 | . 73 8 120 43 42 Core Hits 164 | . 33 5 89 19 18 Critical Kills . | . . . . . . Critical Parts Destroyed 1 | . . . 1 . . Critical Strikes 4 | . . . 2 1 1 Destroy 1 | . . . 1 . . Blast 3 | . . . 1 1 1 Melee Attacks . | . . . . . . Impact . | . . . . . . Slashing . | . . . . . . Piercing . | . . . . . . Sneak Attacks . | . . . . . . Combat Hostiles . | . . . . . . Follow-up Attacks . | . . . . . . Damage Inflicted 5744 | . 1063 146 2519 994 1022 Guns 2469 | . 840 47 934 319 329 Cannons 2186 | . 107 91 1096 499 393 Explosions 1033 | . 106 . 474 153 300 Melee . | . . . . . . Ramming 56 | . 10 8 15 23 . Kinetic 3910 | . 588 138 1700 818 666 Thermal 745 | . 359 . 330 . 56 Explosive 1033 | . 106 . 474 153 300 Electromagnetic . | . . . . . . Impact . | . . . . . . Slashing . | . . . . . . Piercing . | . . . . . . Highest Corruption 6 | . . . 5 6 6 Average Corruption 5 | . . . 5 5 6 Corruption Purged . | . . . . . . Corruption Blocked . | . . . . . . Effects 68 | . . . 15 18 35 Message Errors 11 | . . . 4 1 6 Matter Fused 23 | . . . 5 8 10 Heat Flow Errors 13 | . . . 2 1 10 Energy Discharges 5 | . . . . 2 3 Data Loss (minor) 9 | . . . 3 1 5 Data Loss (major) 1 | . . . 1 . . Misfires 3 | . . . . 3 . Alerts 1 | . . . . 1 . Weapon Failures 2 | . . . . 1 1 Overload Shots . | . . . . . . Overflow Damage 33 | . . . 8 3 22 Projectiles 11 | . . . 8 3 . Explosions 22 | . . . . . 22 Melee . | . . . . . . Knockbacks 20 | . 2 . 8 4 6 Impact . | . . . . . . Kinetic 19 | . 2 . 8 3 6 Secondary 1 | . . . . 1 . Self-Inflicted Damage 272 | . . 4 175 . 93 Shots 8 | . . . 5 . 3 Rammed 12 | . 4 3 3 2 . Targets Rammed 15 | . 5 3 4 3 . Kicked 1 | . . . 1 . . Crushed 2 | . 1 . . 1 . Highest Temperature 507 | . 60 . 507 109 255 Average Temperature 91 | . 18 . 147 26 92 Received Heat Transfer 1735 | . 321 6 861 225 322 Effects 9 | . . . 8 . 1 Energy Bleed 2 | . . . 2 . . Interference 4 | . . . 3 . 1 Damage (major) 3 | . . . 3 . . Siege Activations . | . . . . . . Robots Corrupted . | . . . . . . Combat Hostiles . | . . . . . . Parts Fried . | . . . . . . Impact Corruptions . | . . . . . . Robots Melted . | . . . . . . Combat Hostiles . | . . . . . . Parts Melted . | . . . . . . Heat Transferred 1345 | . 800 . 420 . 125 Parts Sabotaged . | . . . . . . Parts Stolen . | . . . . . . Parts Stripped . | . . . . . . Power Chain Reactions . | . . . . . . Alert | -11 -10 -10 -9 -9 -9 ------- Run | Yrd Mat Min Mat Sto Gar Peak Influence 573 | . 209 124 419 301 573 Initial 195 | . . 70 . 176 195 Average 139 | . 71 34 137 197 423 Maximum Alert Level 2 | . 1 . 2 1 2 Low Security (%) 76 | 100 98 100 69 47 18 Level 1 12 | . 1 . 26 52 6 Level 2 11 | . . . 3 . 75 Level 3 . | . . . . . . Level 4 . | . . . . . . Level 5 . | . . . . . . High Security . | . . . . . . Max Security . | . . . . . . Squads Dispatched 12 | . 3 1 7 1 . Investigation 8 | . 2 1 4 1 . Extermination . | . . . . . . Reinforcement 4 | . 1 . 3 . . Assault . | . . . . . . Garrison . | . . . . . . Intercept . | . . . . . . Searches Triggered . | . . . . . . Construction Impeded 1 | . . . 1 . . Haulers Reinforced . | . . . . . . Active Scanning Responses . | . . . . . . Cargo Convoy Interrupts . | . . . . . . Stealth | -11 -10 -10 -9 -9 -9 --------- Run | Yrd Mat Min Mat Sto Gar Distress Signals 10 | . 3 . 5 2 . Communications Jammed . | . . . . . . Distress Signals . | . . . . . . Times Spotted 134 | . 29 7 62 14 22 Peak Tracking Total 9 | . 4 3 9 5 8 Tactical Retreats 7 | . 1 . 3 2 1 Traps | -11 -10 -10 -9 -9 -9 ------- Run | Yrd Mat Min Mat Sto Gar Traps Triggered 6 | . 2 . 1 1 2 Indirectly . | . . . . . . Trap Hack Attempts . | . . . . . . Triggered . | . . . . . . Disarmed . | . . . . . . Reprogrammed 4 | . 4 . . . . Reused . | . . . . . . Traps Extracted . | . . . . . . Installed . | . . . . . . Triggered . | . . . . . . Machines | -11 -10 -10 -9 -9 -9 ---------- Run | Yrd Mat Min Mat Sto Gar Machines Disabled 3 | . . . 1 1 1 Max in Single Turn 1 | . . . 1 1 1 Garrison Relay 1 | . . . . . 1 Machines Repaired . | . . . . . . Machines Dismantled . | . . . . . . Machines Sabotaged . | . . . . . . Overloaded Fab Kills . | . . . . . . Hacking | -11 -10 -10 -9 -9 -9 --------- Run | Yrd Mat Min Mat Sto Gar Machines Accessed 21 | . 7 1 6 6 1 Terminals 19 | . 7 . 6 5 1 Fabricators . | . . . . . . Repair Stations . | . . . . . . Recycling Units . | . . . . . . Scanalyzers . | . . . . . . Garrison Access 1 | . . . . 1 . Total Hacks 45 | . 18 1 14 11 1 Successful 21 | . 11 1 5 4 . Failed 24 | . 7 . 9 7 1 Catastrophic 12 | . 2 . 5 4 1 Database Lockouts . | . . . . . . Manual 33 | . 14 . 14 5 . Terminals 42 | . 18 . 14 9 1 Fabricators . | . . . . . . Repair Stations . | . . . . . . Recycling Units . | . . . . . . Scanalyzers . | . . . . . . Garrison Access 2 | . . . . 2 . Terminal Hacks 11 | . 5 1 2 3 . Open Door 3 | . . 1 . 2 . Terminal Index 2 | . 1 . 1 . . Reprogram Traps 1 | . 1 . . . . Recall Reinforcements 1 | . . . 1 . . Hauler Manifests 2 | . 2 . . . . Registered Components 2 | . 1 . . 1 . Fabricator Hacks . | . . . . . . Repair Station Hacks . | . . . . . . Recycling Unit Hacks . | . . . . . . Scanalyzer . | . . . . . . Garrison Access Hacks 1 | . . . . 1 . Unlock Access 1 | . . . . 1 . Unauthorized Hacks 9 | . 6 . 3 . . Terminals 9 | . 6 . 3 . . Assimilate 3 | . 2 . 1 . . Botnet 4 | . 3 . 1 . . Operators 2 | . 1 . 1 . . Fabricators . | . . . . . . Repair Stations . | . . . . . . Recycling Units . | . . . . . . Scanalyzers . | . . . . . . Garrison Access . | . . . . . . Data Cores Recovered . | . . . . . . Used . | . . . . . . Hacking Detections 17 | . 5 . 6 5 1 Full Trace Events 7 | . 1 . 4 2 . Feedback Events . | . . . . . . Feedback Blocked . | . . . . . . Robot Schematics Acquired . | . . . . . . Robots Built . | . . . . . . Authchips . | . . . . . . Time . | . . . . . . Total Robot Build Rating . | . . . . . . Part Schematics Acquired . | . . . . . . Parts Built . | . . . . . . Authchips . | . . . . . . Time . | . . . . . . Total Part Build Rating . | . . . . . . Parts Repaired . | . . . . . . Time . | . . . . . . Parts Recycled . | . . . . . . Recycled Matter . | . . . . . . Retrieved Matter . | . . . . . . Retrieved Components . | . . . . . . Parts Scanalyzed . | . . . . . . Part Schematics Acquired . | . . . . . . Parts Damaged . | . . . . . . Bothacking | -11 -10 -10 -9 -9 -9 ------------ Run | Yrd Mat Min Mat Sto Gar Used RIF Installer . | . . . . . . Robots Hacked . | . . . . . . Non-combat . | . . . . . . Combat . | . . . . . . Robot Hacks Applied . | . . . . . . Relay Couplers Released 3 | . . . . . 3 Machine Destruction 3 | . . . . . 3 Fabnet Peak Effective % . | . . . . . . Robots Rewired . | . . . . . . Allies Hacked . | . . . . . . Hacks Repelled . | . . . . . . Allies | -11 -10 -10 -9 -9 -9 -------- Run | Yrd Mat Min Mat Sto Gar Total Allies 2 | . . 2 . . . Largest Group 2 | . . 2 1 . . Highest-Rated Group 44 | . . 44 13 . . Highest-Rated Ally 31 | . . 31 13 . . Total Orders . | . . . . . . Ally Attacks 14 | . . 14 . . . Total Damage 208 | . . 208 . . . Kills 1 | . . 1 . . . Allies Corrupted . | . . . . . . Allies Melted . | . . . . . . Intel | -11 -10 -10 -9 -9 -9 ------- Run | Yrd Mat Min Mat Sto Gar Robot Analysis Total . | . . . . . . Derelict Logs Recovered 1 | . . 1 . . . Drone Launches . | . . . . . . Drone Recoveries . | . . . . . . Exploration | -11 -10 -10 -9 -9 -9 ------------- Run | Yrd Mat Min Mat Sto Gar Turns Passed 8563 | 3 2949 1534 2277 657 1143 Spaces Moved 2942 | 1 993 719 618 200 411 Core 8 | . . . 7 1 . Treads 2300 | 1 993 311 527 199 269 Legs 10 | . . . 10 . . Wheels 624 | . . 408 74 . 142 Hover . | . . . . . . Flight . | . . . . . . Fastest Speed 135 | 160 160 175 135 240 200 Average Speed 232 | 160 235 204 257 246 231 Slowest Speed 1600 | 160 240 312 1600 1600 320 Overloaded Moves . | . . . . . . Propulsion Burnouts . | . . . . . . Robots Hopped . | . . . . . . Cave-ins Triggered . | . . . . . . Exploration Rate (%) 55 | 2 92 96 55 39 50 Regions Visited 5 Branch Regions 2 Pre-discovered Areas . | . . . . . . Known Exits Taken 4 | . 1 1 1 1 . Unknown Exits Taken 1 | 1 . . . . . Scrap Searched 1 | . . 1 . . . Spaces Dug 5 | . 5 . . . . Terrain Destroyed 105 | . 29 . 57 4 15 Melee . | . . . . . . Projectile 10 | . 5 . 1 4 . AOE 95 | . 24 . 56 . 15 Terrain Rammed . | . . . . . . Walls Destroyed . | . . . . . . Machines Disabled . | . . . . . . Actions | -11 -10 -10 -9 -9 -9 --------- Run | Yrd Mat Min Mat Sto Gar Total 4103 | 4 1433 753 1096 292 525 Wait 674 | . 315 . 294 29 36 Move 2937 | . 992 718 617 199 411 Hop . | . . . . . . Pick Up 60 | . 20 9 21 6 4 Fast Attach 22 | . 6 . 11 3 2 Attach 32 | 2 3 1 16 1 9 Detach 8 | . 2 . 3 . 3 Swap 13 | . 3 6 1 3 . Drop 38 | 2 8 8 10 10 . Fire 294 | . 79 8 119 38 50 Melee . | . . . . . . Ram 4 | . . 3 1 . . Kick 1 | . . . 1 . . Crush 10 | . 5 . 2 3 . Escape Stasis 10 | . . . . . 10 Rewire . | . . . . . . Trap . | . . . . . . Miscellaneous . | . . . . . . Route ------- -11/Scrapyard -10/Materials (discovered 4 exits: *Mat x2 / *Min / *Sub) -10/Mines (discovered 3 exits: *Mat x2 / *Sub) -9/Materials (discovered 4 exits: *Mat / [*Min] / *Sto x2) -9/Storage -9/Garrison (discovered 2 exits: *Mat x2) History --------- Turn | Location | Event 4 | -11/Scrapyard | Discovered new exit (range 0) 4 | -11/Scrapyard | Entered Materials 318 | -10/Materials | Build established: Mutant 1182 | -10/Materials | Discovered new exit (range 7) 1186 | -10/Materials | Discovered new exit (range 7) 2111 | -10/Materials | Discovered new exit (range 11) 2492 | -10/Materials | Discovered new exit (range 14) 2951 | -10/Materials | Identified exit to Mines 2953 | -10/Materials | Entered Mines 3145 | -10/Mines | Discovered new exit (range 15) 3172 | -10/Mines | Identified exit to Materials 3375 | -10/Mines | Discovered exit to Materials (range 5) 3516 | -10/Mines | Met a Derelict shopkeep closing up shop 3662 | -10/Mines | Joined a pair of Derelicts in attacking an 0b10 outpost 3676 | -10/Mines | Learned Materials trap positions 3824 | -10/Mines | Discovered new exit (range 6) 3832 | -10/Mines | Identified exit to Subcaves 4042 | -10/Mines | A weapon hastily lodged in a ceiling crevice suddenly fell to the ground 4487 | -10/Mines | Entered Materials 4487 | -9/Materials | Accompanied by 1 ally 4487 | -9/Materials | Evolved 2 slots: Propulsion x1, Utility x1 4488 | -9/Materials | Loaded intel: 17 trap records 4794 | -9/Materials | Discovered new exit (range 13) 4977 | -9/Materials | Build established: Scavenger-Mutant 5051 | -9/Materials | Discovered new exit (range 13) 5642 | -9/Materials | Lost 3 parts (1p1n1u) 5699 | -9/Materials | Lost 3 parts (2n1u) 5809 | -9/Materials | Core integrity fell below 50% 5821 | -9/Materials | Lost 3 parts (1p2w) 5936 | -9/Materials | Discovered new exit (range 14) 6012 | -9/Materials | Build established: Mutant 6421 | -9/Materials | Discovered new exit (range 7) 6557 | -9/Materials | Identified exit to Storage 6764 | -9/Materials | Entered Storage 7418 | -9/Storage | Identified exit to Garrison 7421 | -9/Storage | Entered Garrison 7542 | -9/Garrison | Triggered checkpoint 7627 | -9/Garrison | Triggered checkpoint 7669 | -9/Garrison | Core integrity fell below 20% 7698 | -9/Garrison | Destroyed 10 combat bots 7704 | -9/Garrison | Lost 4 parts (1p1n1u1w) 7815 | -9/Garrison | Discovered new exit (range 12) 7953 | -9/Garrison | Triggered checkpoint 8053 | -9/Garrison | Garrison Relay disabled 8209 | -9/Garrison | Triggered checkpoint 8241 | -9/Garrison | Lost 4 parts (1p2n1w) 8476 | -9/Garrison | Discovered new exit (range 8) 8491 | -9/Garrison | Identified exit to Materials 8542 | -9/Garrison | Triggered checkpoint 8564 | -9/Garrison | Destroyed by G-34 Mercenary with Small Laser Last Messages --------------- Field strength at 40. Field strength at 30. Field strength at 20. Field strength at 10. Stasis field depleted. System corrupted: Matter fused (-7). EXIT=FOUND System corrupted: Matter fused (-8). EXIT=IDENTIFIED: MATERIALS System corrupted: Component data lost. Beams of light sweep through the air. An alarm sounds. Lgt. Treads destroyed. Destroyed Lgt. Treads. System corrupted: Heat flow error (+222). Overheating: System interference. Signal Interpreter temporarily disabled. G-34 Mercenary destroyed. Grenade Launcher destroyed. Signal Interpreter destroyed. Map ----- +----------------------------------------------------+ | ?????????????????????????????????????????????????? | | ?????????????????????????????????????????????????? | | ?????????????????????????????????????????????????? | | ?????????????????????????????????????????????????? | | ?????????????????????????????????????????????????? | | ?????????????????????????????????????????????????? | | ?????????????????????????????????????????????????? | | ?????????????????????????????????????????????????? | | ?????????????????????????????????????????????????? | | ?????????????????????????????????????????????????? | | ?????????????????????????????????????????????????? | | ?????????????????????????????##??????????????????? | | ????????????????????????????? ??????????????????? | | ????????????????????????????# #?????????????????? | | ?????????????######?????????# #?????????????????? | | ?????????????# #?????????# #?????????????????? | | ?????????????# < #?????????# #??????????????? | | ?????????????# #?????????# ###???????????????? | | ?????????????### #?????????" #???????????????? | | ???????????????# #?????????" ????????????????? | | ???????????????# #?????????" ?????????????????? | | ???????????????# #?????????# #?????????????????? | | ???????????????# #????###### #?????????????????? | | ???????????????# ###### # ###########???????? | | ???????????????# ggg #??#????? | | ???????????????# @g ! #?? #???? | | ???????????????######### # # ^ ######## #?# #?##" | | ???????????????????????##?### #??????# #?# #?#T | | ????????????????????????????# ^#??????# #?# #?### | | ????????????????????????????# #??????# #?# #???# | | ????????????????????????????# #??????# #?# #???# | | ????????????????????????????# #??????# ### ###?# | | ????????????????????????????# #??????# ## ### | | ????????????????????????????# #?????## ## ## | | ????????????????????????????# ####### ^^ | | ????????????????????????????# ^ | | ????????????????????????????# ^^* | | ????????????????????????????########## ## ## | | ?????????????????????????????????????# ## ## | | ?????????????????????????????????????" [ | | ?????????????????????????????????????" | | ?????????????????????????????????????" | | ?????????????????????????????????????" | | ?????????????????????????????????????# ## ## | | ?????????????????????????????????????# ## ## | | ?????????????????????????????????????# =% | | ?????????????????????????????????????# | | ?????????????????????????????????????# % | | ?????????????????????????????????????# ##""""## | | ?????????????????????????????????????# ???????# | +----------------------------------------------------+ Best States ------------- Heat Dissipation 39 Energy Generation 14 Energy Capacity 280 Matter Stores 300 Matter Capacity 300 Sight Range 16 Terrain Scan Density 10 Armor Coverage 150 Core Shielding 20 Evasion (%) 40 Recoil Reduction 3 Item Schematics ----------------- None Robot Schematics ------------------ None Fabricated ------------ Nothing Alien Tech Used ----------------- None Achievements -------------- Quick And Dirty Challenges ------------ None Game ------ Seed BeamAntigravDisintegrator Manual? 0 Play Time 00:46:37 Cumulative 43.5 hours Start 2024.04.19 @ 08:16:37 End 2024.04.19 @ 09:00:01 Sessions 1 Manual Loads 0 Difficulty Rogue Special Mode None Game No. 99 Rogue 97 Adventurer 0 Explorer 2 Win Type - Total 0 Types 0/0/0/0/0/0/0/0/0 Lore% 19 Gallery% 37 Achievement% 31 Wizard Run 0 Options --------- Layout 1 ASCII 1 Keyboard 0 Movement Arrows Keybinds 1 Fullscreen 1 Font 18/SmallcapsGlow Map View 50x40 Zoom Use 0% Tactical HUD 0 Map Filters NONE Filters NONE Steam 1 RUN: a6b1931a-c8f8-49c2-aa0e-90c7ac576747